bitfinex-derivatives/quotes_SOLF0:USTF0_20251023
["timestamp","ask_amount","ask_price","bid_price","bid_amount"]
[1761230641109,2.65,190.24,190.19,4.91317631]
[1761230641307,2.65,190.24,190.17,4.91317631]
[1761230641507,4.7304,190.21,190.17,4.91317631]
[1761230641718,2.65,190.2,190.16,4.91317631]
[1761230642015,2.65,190.24,190.16,7.68317631]
[1761230642208,2.65,190.24,190.17,7.68317631]
[1761230643017,2.65,190.24,190.18,4.91317631]
[1761230643415,2.65,190.24,190.19,9.73876634]
[1761230643713,2.65,190.24,190.2,4.82559003]
[1761230643913,2.65,190.24,190.21,4.82559003]
[1761230644119,2.65,190.24,190.22,4.82559003]
[1761230644328,2.65,190.24,190.23,4.82559003]
[1761230646217,2.65,190.24,190.19,4.91317631]
[1761230646411,2.65,190.24,190.19,2.77]
[1761230647424,44.46,190.25,190.19,2.77]
[1761230647625,44.46,190.25,190.2,2.77]
[1761230648724,46.2284772,190.25,190.2,2.77]
[1761230648923,46.2284772,190.25,190.22,4.91317631]
[1761230649126,46.2284772,190.25,190.21,4.91317631]
[1761230649341,48.8784772,190.25,190.21,7.68317631]
[1761230649519,48.8784772,190.25,190.21,2.77]
[1761230650731,1.7684772,190.23,190.2,4.91317631]
[1761230650933,1.7684772,190.23,190.19,7.68317631]
[1761230651727,1.7684772,190.23,190.17,4.7311]
[1761230651728,1.7684772,190.24,190.21,2.77]
[1761230652529,1.7684772,190.24,190.2,2.77]
[1761230653520,2.65,190.23,190.19,7.68317631]
[1761230653722,1.7684772,190.22,190.18,7.68317631]
[1761230654231,2.65,190.21,190.17,4.91317631]
[1761230654432,1.7684772,190.22,190.17,7.68317631]
[1761230654628,1.7684772,190.22,190.17,4.91317631]
[1761230654932,1.7684772,190.22,190.18,2.77]
[1761230656636,2.65,190.21,190.17,4.91317631]
[1761230656825,2.65,190.21,190.17,7.68317631]
[1761230657026,1.7684772,190.22,190.18,2.77]
[1761230657226,4.4184772,190.22,190.18,2.77]
[1761230657421,4.4184772,190.22,190.17,7.68317631]
[1761230657928,1.7684772,190.2,190.17,7.68317631]
[1761230658736,50.9578772,190.25,190.18,2.77]
[1761230659032,1.7684772,190.25,190.21,2.77]
[1761230659429,2.65,190.24,190.2,4.91317631]
[1761230659628,2.65,190.24,190.2,7.68317631]
[1761230660132,1.7684772,190.25,190.21,2.77]
[1761230660329,44.44,190.27,190.21,2.77]
[1761230660526,46.2084772,190.27,190.23,2.77]
[1761230660928,48.8584772,190.27,190.23,2.77]
[1761230661935,44.44,190.27,190.24,2.77]
[1761230662128,44.44,190.27,190.25,2.77]
[1761230662329,1.7684772,190.31,190.28,2.77]
[1761230662529,4.4184772,190.29,190.25,4.91317631]
[1761230662829,2.65,190.29,190.24,7.68317631]
[1761230663025,1.7684772,190.28,190.25,2.77]
[1761230663435,1.7684772,190.28,190.26,4.97828176]
[1761230663639,1.7684772,190.28,190.27,4.97828176]
[1761230664127,4.7278,190.31,190.28,2.77]
[1761230664128,1.7684772,190.31,190.28,2.77]
[1761230664325,2.65,190.3,190.29,4.97828176]
[1761230665534,2.65,190.32,190.29,4.97828176]
[1761230665736,1.7684772,190.3,190.26,2.75]
[1761230665938,1.7684772,190.3,190.27,4.97492793]
[1761230666133,1.7684772,190.3,190.28,4.97492793]
[1761230666440,1.7684772,190.3,190.29,4.97492793]
[1761230667237,4.5084772,190.3,190.29,4.97492793]
[1761230669539,2.88,190.26,190.22,2.75]
[1761230669746,1.7684772,190.24,190.2,2.7]
[1761230670139,6.4981772,190.24,190.2,2.7]
[1761230670843,6.4981772,190.24,190.2,7.61317631]
[1761230671243,6.4981772,190.24,190.2,2.7]
[1761230671744,44.42,190.25,190.18,4.91317631]
[1761230671745,1.7684772,190.21,190.18,4.91317631]
[1761230671951,1.7684772,190.21,190.17,2.7]
[1761230672150,1.7684772,190.19,190.17,2.7]
[1761230672645,4.73,190.22,190.17,7.61317631]
[1761230672844,4.73,190.22,190.19,2.7]
[1761230677554,1.7684772,190.23,190.19,2.7]
[1761230678260,1.7684772,190.21,190.17,7.61317631]
[1761230678458,1.7684772,190.21,190.18,2.7]
[1761230678860,6.4988772,190.21,190.18,2.7]
[1761230681166,9.3788772,190.21,190.16,4.91317631]
[1761230681364,9.3788772,190.21,190.17,2.7]
[1761230681564,9.3788772,190.21,190.18,4.87412497]
[1761230681764,9.3788772,190.21,190.19,4.87412497]
[1761230682066,9.3788772,190.21,190.2,4.87412497]
[1761230682959,6.4988772,190.21,190.2,4.87412497]
[1761230683464,9.3788772,190.21,190.2,4.87412497]
[1761230683969,9.3788772,190.21,190.1,1.7684772]
[1761230683970,2.88,190.17,190.12,7.61317631]
[1761230684169,1.7684772,190.16,190.12,7.61317631]
[1761230684460,9.3800772,190.16,190.12,2.7]
[1761230685459,6.5000772,190.16,190.12,2.7]
[1761230685658,7.6118,190.15,190.11,4.91317631]
[1761230685869,2.88,190.14,190.11,4.91317631]
[1761230686072,2.88,190.13,190.1,4.91317631]
[1761230686270,4.6484772,190.12,190.09,111.80005714]
[1761230686562,1.7684772,190.12,190.07,7.61317631]
[1761230686768,4.6484772,190.12,190.07,7.61317631]
[1761230686966,2.88,190.11,190.07,7.61317631]
[1761230687366,4.6484772,190.08,190.07,4.91317631]
[1761230687569,2.88,190.07,190.02,4.91317631]
[1761230687773,1.7684772,190.03,190.02,4.91317631]
[1761230687974,1.7684772,190.03,190.01,4.91317631]
[1761230688472,1.7684772,190.03,189.97,7.61317631]
[1761230688670,1.7684772,190.01,189.98,2.7]
[1761230688865,1.7684772,190.01,189.96,4.91317631]
[1761230689171,1.7684772,190.01,189.97,2.7]
[1761230689771,1.7684772,190.03,189.97,2.7]
[1761230689970,1.7684772,190.05,189.98,2.7]
[1761230690375,1.7684772,190.05,189.99,2.7]
[1761230691073,2.88,190.02,189.98,4.7357]
[1761230691269,1.7684772,190.03,189.98,7.4357]
[1761230691469,1.7684772,190.03,189.99,2.7]
[1761230692171,4.6484772,190.03,189.99,2.7]
[1761230693261,2.88,190.03,189.94,2.7]
[1761230693469,1.7684772,190.01,189.94,2.7]
[1761230693865,1.7684772,190.01,189.94,4.4684772]
[1761230694070,4.6484772,190.03,189.95,2.7]
[1761230694373,1.7684772,190.03,189.95,2.7]
[1761230695172,1.7684772,190.03,189.97,7.4362]
[1761230695472,1.7684772,190.03,189.98,2.7]
[1761230695668,1.7684772,190.05,189.98,4.7357]
[1761230695874,1.7684772,190.05,189.99,7.4364633]
[1761230696176,1.7684772,190.05,190.01,2.7]
[1761230696380,1.7684772,190.05,190.02,4.7364633]
[1761230696677,1.7684772,190.05,190.03,4.7364633]
[1761230696975,1.7684772,190.05,190.04,4.73392099]
[1761230697176,1.7684772,190.05,190.01,2.7]
[1761230697374,1.7684772,190.05,190.02,7.43243035]
[1761230697564,1.7684772,190.05,190.03,4.73243035]
[1761230697769,1.7684772,190.05,190.02,2.7]
[1761230697968,1.7684772,190.05,190.03,4.73243035]
[1761230698173,1.7684772,190.05,190.02,2.7]
[1761230698371,1.7684772,190.05,190.03,4.73104653]
[1761230698676,1.7684772,190.05,190.02,2.7]
[1761230698880,1.7684772,190.05,189.58,41.20350029]
[1761230698881,1.7684772,190.07,190.04,2.76]
[1761230699176,4.4184772,190.09,190.05,4.73072048]
[1761230699383,2.65,190.08,190.04,2.76]
[1761230699680,2.65,190.08,190.05,4.72979058]
[1761230699874,2.65,190.08,190.04,2.76]
[1761230700075,2.65,190.08,190.05,4.7297904]
[1761230700376,1.7684772,190.07,190.03,2.76]
[1761230700573,1.7684772,190.07,190.04,4.7291959]
[1761230700881,4.4184772,190.07,190.03,2.76]
[1761230701075,4.4184772,190.07,190.04,4.72919657]
[1761230701281,2.65,190.06,190.02,4.7347]
[1761230701481,1.7684772,190.07,190.03,7.48829327]
[1761230701678,1.7684772,190.07,190.03,2.76]
[1761230702373,2.65,190.06,190.02,4.7347]
[1761230702679,2.65,190.06,190.03,4.72721404]
[1761230702879,2.65,190.06,190.02,7.4947]
[1761230703076,2.65,190.06,190.03,4.72721438]
[1761230703279,5.41858523,190.11,190.0,2.76]
[1761230703471,5.41858523,190.11,190.05,2.76]
[1761230703778,2.65,190.1,190.06,7.48614914]
[1761230704079,47.18858523,190.18,190.08,2.76]
[1761230704379,47.18858523,190.18,190.1,2.76]
[1761230704580,47.18858523,190.18,190.11,4.72614914]
[1761230704878,2.65,190.17,190.12,4.72614914]
[1761230705082,2.65,190.17,190.06,2.76]
[1761230705277,2.65,190.17,190.07,7.48478228]
[1761230705576,2.65,190.15,190.08,4.72478228]
[1761230705782,2.65,190.15,190.09,4.72478228]
[1761230705970,2.65,190.15,190.1,4.72478228]
[1761230706172,51.91958523,190.18,190.11,7.48549935]
[1761230706376,54.56958523,190.18,190.12,4.72549935]
[1761230706577,2.65,190.17,190.13,4.72549935]
[1761230706773,2.65,190.17,190.11,2.76]
[1761230706979,2.65,190.17,190.12,7.52991803]
[1761230707183,2.65,190.17,190.13,4.76991803]
[1761230707484,2.65,190.17,190.12,2.76]
[1761230707485,2.65,190.17,190.14,4.76991803]
[1761230707683,44.42,190.18,190.15,7.53096842]
[1761230707886,44.42,190.18,190.16,7.53096842]
[1761230708089,44.42,190.18,190.11,2.76]
[1761230708289,44.42,190.18,190.12,7.53145371]
[1761230708585,44.42,190.18,190.14,2.76]
[1761230708786,47.07,190.18,190.15,4.77145371]
[1761230708988,47.07,190.18,190.16,4.77145371]
[1761230709288,47.07,190.18,190.1,2.76]
[1761230709588,47.07,190.18,190.11,4.7747076]
[1761230709787,47.07,190.18,190.12,4.7747076]
[1761230709987,2.65,190.17,190.13,4.7747076]
[1761230710188,2.65,190.17,190.14,4.7747076]
[1761230710489,2.65,190.17,190.15,4.7747076]
[1761230710691,2.65,190.17,190.1,2.76]
[1761230710886,2.65,190.17,190.11,4.77679382]
[1761230711186,2.65,190.17,190.12,7.53679382]
[1761230711389,2.65,190.17,190.13,4.77679382]
[1761230711588,2.65,190.17,190.14,4.77679382]
[1761230711782,2.65,190.17,190.12,2.76]
[1761230711783,2.65,190.17,190.15,4.77679382]
[1761230711991,2.65,190.17,190.16,4.7789713]
[1761230712392,2.65,190.17,190.12,2.76]
[1761230712594,2.65,190.17,190.13,4.78141378]
[1761230712890,2.65,190.17,190.14,4.78141378]
[1761230713092,2.65,190.17,190.15,4.78141378]
[1761230713287,2.65,190.17,190.09,4.7331]
[1761230713493,5.41858523,190.16,190.1,4.78359641]
[1761230713690,2.65,190.15,190.11,4.78359641]
[1761230713895,44.42,190.18,189.98,9.6957951]
[1761230713896,5.41858523,190.13,190.12,4.78359641]
[1761230714096,5.41858523,190.13,190.04,2.76]
[1761230714297,5.41858523,190.13,190.05,4.78605443]
[1761230714493,2.76858523,190.15,190.07,2.76]
[1761230714793,2.76858523,190.17,190.09,2.76]
[1761230714992,49.1511,190.18,190.12,2.76]
[1761230715196,44.42,190.18,190.14,2.76]
[1761230715393,44.42,190.18,190.15,4.78605443]
[1761230715602,44.42,190.18,190.16,4.78605443]
[1761230715785,47.07,190.18,190.17,4.78605443]
[1761230715989,7.3812,190.17,190.11,7.4926]
[1761230716189,2.65,190.16,190.12,4.7870689]
[1761230716399,2.65,190.16,190.13,4.7870689]
[1761230716593,2.65,190.16,190.14,4.7870689]
[1761230716788,7.3816,190.16,190.15,4.7870689]
[1761230717094,2.65,190.14,190.02,4.91317631]
[1761230717294,2.65,190.02,189.93,6.258e-05]
[1761230717495,44.4,190.01,189.91,2.76]
[1761230717688,2.76858523,189.98,189.91,2.76]
[1761230717894,44.4,190.01,189.91,2.76]
[1761230718089,2.65,190.05,189.91,2.76]
[1761230718290,2.65,190.09,189.92,2.76]
[1761230718496,5.41858523,190.01,189.92,2.76]
[1761230718699,2.65,190.06,189.93,2.76]
[1761230718897,2.65,190.13,189.97,2.76]
[1761230719202,9.48,190.16,189.97,2.76]
[1761230719392,2.65,190.15,189.99,2.76]
[1761230719591,2.65,190.15,189.99,6.47539667]
[1761230719802,2.65,190.15,190.0,2.76]
[1761230719987,7.3807,190.19,190.09,4.7332]
[1761230720193,16.61,190.19,190.1,2.76]
[1761230720590,2.65,190.24,190.07,2.76]
[1761230720799,2.65,190.24,190.04,16.38183464]
[1761230720800,2.65,190.25,190.09,2.76]
[1761230720989,2.65,190.25,190.1,2.76]
[1761230721192,2.65,190.25,190.08,2.76]
[1761230721502,43.26,190.29,190.08,2.76]
[1761230721503,2.65,190.21,190.08,2.76]
[1761230721802,2.65,190.18,190.08,2.76]
[1761230722194,4.03818383,190.19,190.12,2.76]
[1761230722394,4.03818383,190.21,190.12,2.76]
[1761230722597,6.68818383,190.22,190.12,2.76]
[1761230723201,4.03818383,190.22,190.12,2.76]
[1761230723400,44.56,190.23,190.12,2.76]
[1761230723606,44.56,190.23,190.16,4.7314]
[1761230724502,44.56,190.23,190.14,2.76]
[1761230724896,4.04537276,190.22,190.14,2.76]
[1761230725101,2.65,190.21,190.1,4.7329]
[1761230725301,2.65,190.21,190.1,7.4929]
[1761230725506,4.7303,190.21,190.1,7.4929]
[1761230725709,2.65,190.2,190.1,7.4929]
[1761230726313,2.81,190.18,190.1,2.76]
[1761230726713,4.7312,190.17,190.1,2.76]
[1761230727209,2.81,190.16,190.05,2.86]
[1761230727807,4.7318,190.15,190.05,2.86]
[1761230728015,2.81,190.14,190.05,2.86]
[1761230728215,6.85272627,190.14,190.05,2.86]
[1761230728405,2.81,190.14,190.05,2.86]
[1761230729511,2.69,190.12,190.0,2.87]
[1761230730210,4.04356906,190.14,190.02,2.87]
[1761230730419,4.04356906,190.15,190.02,2.87]
[1761230730611,44.52,190.2,190.09,2.87]
[1761230730612,2.69,190.2,190.09,2.87]
[1761230730808,6.73076111,190.2,190.09,2.87]
[1761230731109,4.04157256,190.19,190.09,2.87]
[1761230731416,2.69,190.2,190.11,4.7325]
[1761230731911,6.73157256,190.2,190.11,4.7325]
[1761230732214,6.73157256,190.2,190.09,2.87]
[1761230732215,6.73157256,190.2,190.13,4.7322]
[1761230733518,6.73157256,190.2,190.07,2.87]
[1761230733519,2.69,190.19,190.07,2.87]
[1761230733719,2.69,190.18,190.07,2.87]
[1761230734019,4.7312,190.17,190.08,4.7333]
[1761230734213,47.25,190.22,190.02,2.87]
[1761230734409,4.04383729,190.21,190.06,2.87]
[1761230734609,7.42,190.22,190.12,4.7322]
[1761230734808,4.04383729,190.21,190.12,4.7322]
[1761230735522,4.04383729,190.21,190.12,7.6022]
[1761230735716,4.04383729,190.21,190.13,2.87]
[1761230735922,7.58708475,190.28,190.14,2.87]
[1761230736113,4.04391005,190.27,190.14,2.87]
[1761230736312,4.04391005,190.27,190.06,22.45603954]
[1761230736313,6.73391005,190.27,190.16,7.6012]
[1761230736622,6.73309866,190.26,190.16,7.6012]
[1761230736822,4.04309866,190.25,190.16,7.6012]
[1761230737020,6.73309866,190.25,190.16,2.87]
[1761230737216,2.69,190.25,190.16,2.87]
[1761230737617,6.73315716,190.25,190.16,2.87]
[1761230737920,2.69,190.25,190.16,2.87]
[1761230738123,2.69,190.24,190.15,4.7316]
[1761230738335,2.69,190.23,190.13,4.7321]
[1761230738526,6.73315698,190.23,190.13,4.7321]
[1761230738728,2.69,190.18,190.01,2.87]
[1761230739034,2.69,190.17,190.01,2.87]
[1761230739223,2.69,190.16,190.01,2.87]
[1761230739425,2.69,190.16,190.04,2.87]
[1761230739623,6.2863655,190.21,190.04,2.87]
[1761230739624,2.69,190.21,190.04,2.87]
[1761230739832,4.7307,190.19,190.08,7.6032]
[1761230740027,2.69,190.18,190.08,2.87]
[1761230740833,11.46725087,190.18,190.08,2.87]
[1761230741036,4.04625087,190.17,190.08,2.87]
[1761230741338,4.04625087,190.17,190.08,7.6032]
[1761230741930,2.69,190.13,190.03,4.7345]
[1761230742323,4.7328,190.11,190.03,4.7345]
[1761230742522,4.7328,190.11,190.01,2.87]
[1761230742523,2.69,190.11,190.01,2.87]
[1761230743034,8.65450985,190.13,190.01,2.87]
[1761230743035,7.4234,190.09,190.01,2.87]
[1761230743236,4.04625087,190.08,189.97,2.87]
[1761230743433,2.69,190.07,189.97,2.87]
[1761230743642,2.69,190.07,189.88,21.54603954]
[1761230743643,2.69,190.05,189.92,2.87]
[1761230743943,2.69,190.04,189.92,2.87]
[1761230744241,2.69,190.01,189.86,2.87]
[1761230744432,6.73625087,190.01,189.86,2.87]
[1761230744632,11.47165087,190.01,189.89,4.7381]
[1761230744842,4.04625087,190.0,189.89,4.7381]
[1761230745138,7.4254,190.01,189.89,4.7381]
[1761230745326,2.69,190.0,189.91,4.7376]
[1761230745526,2.69,190.0,189.89,2.87]
[1761230746038,7.4254,190.0,189.89,2.87]
[1761230746339,2.69,189.99,189.89,2.87]
[1761230747032,6.68603954,190.02,189.91,2.87]
[1761230747240,2.69,190.04,189.91,2.87]
[1761230747631,6.72839716,190.04,189.91,2.87]
[1761230748340,6.72839716,190.04,189.94,4.7369]
[1761230748536,2.69,190.04,189.94,2.87]
[1761230749039,7.4236,190.08,189.98,7.6059]
[1761230749246,4.03584172,190.07,189.98,7.6059]
[1761230749928,6.72584172,190.07,189.98,7.6059]
[1761230750446,2.69,190.07,189.98,7.6059]
[1761230751038,2.69,190.07,190.0,4.7353]
[1761230751238,6.68603954,190.1,190.0,4.7353]
[1761230751438,6.68603954,190.1,190.0,7.6053]
[1761230752343,6.68603954,190.1,190.01,2.87]
[1761230752551,6.68603954,190.1,189.93,62.0]
[1761230752552,2.69,190.12,190.02,2.87]
[1761230753046,6.66200031,190.12,190.02,2.87]
[1761230754038,2.69,190.1,190.02,2.87]
[1761230755042,6.68603954,190.14,189.94,2.87]
[1761230755241,3.97206255,190.13,189.94,2.87]
[1761230755438,2.69,190.15,189.94,2.87]
[1761230755934,7.4217,190.15,189.94,2.87]
[1761230756134,2.69,190.14,189.94,2.87]
[1761230756840,2.69,190.14,190.0,2.87]
[1761230757051,2.69,190.14,190.04,4.7344]
[1761230757839,2.69,190.14,190.05,4.7339]
[1761230758241,2.69,190.14,190.03,2.87]
[1761230758542,2.69,190.14,189.99,6.68603954]
[1761230758743,44.74,190.18,189.95,62.0]
[1761230758744,52.1311,190.18,190.04,2.77]
[1761230760041,52.1311,190.18,190.08,4.7333]
[1761230760243,2.66,190.17,190.08,4.7333]
[1761230760445,2.66,190.17,190.04,2.77]
[1761230760651,2.66,190.22,190.08,2.77]
[1761230760842,3.96838589,190.23,190.08,2.77]
[1761230761044,2.66,190.24,190.08,2.77]
[1761230761249,2.66,190.24,190.08,44.7]
[1761230761446,2.66,190.24,190.09,2.77]
[1761230761652,7.24903046,190.29,190.12,2.77]
[1761230761847,2.66,190.27,190.12,2.77]
[1761230762046,2.66,190.26,190.12,2.77]
[1761230762455,2.66,190.25,190.12,2.77]
[1761230762748,2.66,190.22,190.12,2.77]
[1761230762952,3.96603671,190.25,190.12,2.77]
[1761230763258,7.389,190.26,190.12,2.77]
[1761230763441,7.389,190.26,190.15,2.77]
[1761230763442,2.66,190.26,190.15,2.77]
[1761230764647,4.7284,190.29,190.15,2.77]
[1761230764845,4.7284,190.29,190.14,6.68603954]
[1761230764846,2.66,190.29,190.19,2.77]
[1761230765056,2.66,190.29,190.2,4.7302]
[1761230765258,2.66,190.29,190.2,7.5002]
[1761230765647,2.66,190.27,190.18,4.7309]
[1761230765951,2.66,190.26,190.11,2.77]
[1761230766153,7.3904,190.21,190.13,4.732]
[1761230766358,2.66,190.2,190.11,2.77]
[1761230766659,2.66,190.2,190.06,6.82121604]
[1761230766950,7.3911,190.18,190.07,2.77]
[1761230767149,2.66,190.17,190.07,2.77]
[1761230767346,2.66,190.17,190.02,6.82121604]
[1761230767544,4.05121604,190.18,190.02,7.5049]
[1761230767545,4.7327,190.12,190.02,7.5049]
[1761230767750,2.66,190.11,190.02,7.5049]
[1761230768055,2.66,190.11,190.02,2.77]
[1761230768451,2.66,190.16,190.06,4.7339]
[1761230768649,2.66,190.16,190.06,2.77]
[1761230769758,3.96440988,190.19,190.06,2.77]
[1761230769759,16.18,190.2,190.06,2.77]
[1761230769959,7.3907,190.19,190.1,4.7327]
[1761230770357,3.96540915,190.18,190.03,4.05121604]
[1761230770558,2.66,190.17,190.04,2.77]
[1761230770862,2.66,190.16,190.04,2.77]
[1761230771265,2.66,190.16,190.08,2.77]
[1761230772157,16.18,190.2,190.08,2.77]
[1761230772561,2.66,190.19,190.08,2.77]
[1761230772958,2.66,190.19,190.12,4.7322]
[1761230774058,2.66,190.24,190.11,2.77]
[1761230775059,2.66,190.24,190.16,4.7312]
[1761230775666,2.66,190.23,190.14,4.7319]
[1761230775864,4.7297,190.24,190.14,4.7319]
[1761230775865,2.66,190.22,190.14,4.7319]
[1761230776068,2.66,190.22,190.05,4.05121604]
[1761230776265,2.66,190.21,190.06,2.77]
[1761230776459,2.66,190.2,190.06,2.77]
[1761230776657,2.66,190.17,190.08,4.7332]
[1761230777164,2.66,190.17,190.09,4.7329]
[1761230777963,2.66,190.15,190.02,2.77]
[1761230778662,2.66,190.15,190.05,4.734]
[1761230779061,2.66,190.14,190.05,4.734]
[1761230780968,2.66,190.14,190.02,4.05121604]
[1761230781158,3.96008466,190.17,190.08,4.7332]
[1761230781359,2.66,190.16,190.08,4.7332]
[1761230781560,2.66,190.15,190.03,2.77]
[1761230781761,2.66,190.15,190.06,4.7337]
[1761230782269,2.66,190.15,190.07,4.7334]
[1761230782666,2.66,190.15,190.03,2.77]
[1761230782862,2.66,190.15,190.02,4.05121604]
[1761230783066,2.66,190.2,190.1,2.77]
[1761230784169,2.66,190.24,190.11,4.05121604]
[1761230784479,2.66,190.24,190.12,2.77]
[1761230784770,6.59063364,190.29,190.17,2.77]
[1761230784964,2.66,190.29,190.18,2.77]
[1761230785367,6.59044946,190.29,190.18,2.77]
[1761230785667,2.66,190.29,190.2,4.7304]
[1761230785876,2.66,190.29,190.09,2.6]
[1761230785877,2.85,190.25,190.09,2.6]
[1761230786070,2.85,190.24,190.09,2.6]
[1761230786262,2.85,190.23,190.09,2.6]
[1761230786658,2.85,190.21,190.09,2.6]
[1761230786877,2.85,190.2,190.04,2.6]
[1761230787168,4.05121604,190.18,190.04,2.6]
[1761230787368,4.7316,190.16,190.08,4.7332]
[1761230787573,2.85,190.17,190.08,4.7332]
[1761230787964,7.5821,190.14,190.07,4.7336]
[1761230789868,7.3423,190.13,190.05,4.7341]
[1761230790270,4.67117012,190.17,190.01,45.08]
[1761230790271,7.3429,190.11,190.02,4.7347]
[1761230790477,6.66121604,190.15,190.03,2.77]
[1761230790682,6.54695955,190.14,190.03,2.77]
[1761230790976,6.54695955,190.14,190.06,4.7338]
[1761230791271,2.61,190.14,190.06,4.7338]
[1761230791666,4.67708898,190.17,190.06,2.77]
[1761230791873,6.54886816,190.18,190.06,2.77]
[1761230792078,3.9393693,190.17,190.06,2.77]
[1761230792276,6.5493693,190.18,190.06,2.77]
[1761230792478,3.9393693,190.17,190.11,4.7325]
[1761230792675,2.61,190.18,190.11,4.7325]
[1761230792874,2.61,190.18,190.06,2.77]
[1761230793383,6.55090573,190.18,190.11,4.7325]
[1761230793679,2.61,190.17,190.06,2.77]
[1761230793875,2.61,190.14,190.01,4.05121604]
[1761230794075,6.5512366,190.14,190.02,2.77]
[1761230794582,11.23293659,190.14,190.02,2.77]
[1761230794782,2.61,190.14,190.02,2.77]
[1761230795178,8.67489026,190.14,190.02,2.77]
[1761230795378,11.23825009,190.13,190.02,2.77]
[1761230795583,3.94279026,190.12,190.02,2.77]
[1761230796282,2.61,190.13,190.02,2.77]
[1761230796882,2.61,190.13,190.03,2.77]
[1761230797377,2.61,190.13,190.06,4.7339]
[1761230797974,2.61,190.13,190.07,4.7335]
[1761230799385,6.55536916,190.13,190.07,4.7335]
[1761230799885,2.61,190.12,190.03,2.77]
[1761230800078,2.61,190.12,189.98,2.77]
[1761230800479,2.61,190.11,189.98,2.77]
[1761230800680,7.3431,190.1,189.99,4.7355]
[1761230800987,3.94536916,190.09,189.98,2.77]
[1761230801289,7.3431,190.1,190.02,4.7348]
[1761230801488,7.3431,190.1,189.98,2.77]
[1761230801988,3.94724775,190.09,189.98,2.77]
[1761230802285,7.3431,190.1,189.98,2.77]
[1761230802488,3.94670392,190.09,189.98,2.77]
[1761230802688,7.3431,190.1,189.98,2.77]
[1761230802875,3.94430637,190.09,189.98,2.77]
[1761230803074,2.61,190.1,190.03,4.7345]
[1761230803885,2.61,190.09,190.01,7.505]
[1761230804192,2.61,190.08,190.01,2.77]
[1761230804581,2.61,190.08,190.03,4.7345]
[1761230806590,4.64909787,190.11,190.03,7.5045]
[1761230806787,6.55223262,190.11,190.03,7.5045]
[1761230806986,11.20133049,190.11,190.03,7.5045]
[1761230807286,3.94223262,190.1,190.03,7.5045]
[1761230808391,6.55223262,190.1,190.03,7.5045]
[1761230808593,11.20133049,190.1,190.03,7.5045]
[1761230808791,3.94213305,190.09,190.03,7.5045]
[1761230808994,2.61,190.08,190.03,4.7345]
[1761230810690,6.2863655,190.15,189.94,54.3936]
[1761230810691,2.61,190.12,190.02,2.77]
[1761230811086,8.60040483,190.12,190.01,4.05121604]
[1761230811285,2.61,190.16,190.01,4.05121604]
[1761230811486,2.61,190.15,190.05,4.05121604]
[1761230811689,6.55638891,190.15,190.05,6.82121604]
[1761230811892,6.55638891,190.15,190.09,4.733]
[1761230812190,2.61,190.14,190.09,4.733]
[1761230812390,2.61,190.13,190.09,4.733]
[1761230813092,2.61,190.13,190.05,2.77]
[1761230813392,11.21085915,190.13,190.05,2.77]
[1761230813596,3.94638891,190.12,190.05,2.77]